[Event "FIDE World School-ch O-11 2025"]
[Site "Vrnjacka Banja"]
[Date "2025.03.24"]
[Round "5.2"]
[White "Zhauynbay, Alimzhan"]
[Black "Larion, Iustin"]
[Result "1/2-1/2"]
[Annotator "TA"]
[ECO "B12"]
[WhiteElo "1927"]
[BlackElo "1919"]
[PlyCount "51"]
[EventDate "2025.03.19"]
[EventType "swiss"]
[EventCountry "SRB"]
[SourceTitle "playchess.com"]
[Source "ChessBase"]
[SourceQuality "1"]
[TimeControl "5400+30"]

{[%evp 9,51,0,9,0,0,0,0,16,2,-13,30,0,87,79,96,80,73,56,78,65,116,115,122,120,141,118,110,102,95,0,0,0,37,14,44,40,38,37,34,52,41,4,27,33]} 1. e4 {[%emt 0:00:05]} c6 {[%emt 0:00:06]} 2. d4 {[%emt 0:00:04]} d5 {[%emt 0:00:05]} 3. e5 {[%emt 0:00:06]} c5 {[%emt 0:00:05]} 4. dxc5 {[%emt 0:00:04]} e6 {[%emt 0:00:07]} 5. a3 {[%emt 0:00:07]} Bxc5 {[%emt 0:00:07]} 6. b4 {[%emt 0:00:05] B12: Caro-Kann: Advance Variation.} Be7 {[%emt 0:00:08]} 7. Nf3 {[%emt 0:00:12]} a5 {[%emt 0:00:08]} 8. b5 {[%emt 0:00:09] The position is equal.} Nd7 {[%emt 0:00:08]} 9. c4 {[%emt 0:00:56]} dxc4 {[%emt 0:01:04]} 10. Nbd2 {[%emt 0:00:53]} Nb6 {[%emt 0:17:13]} (10... Nxe5 $11 11. Bb2 (11. Nxe5 Qd4 $11) 11... Nxf3+ 12. gxf3 Bf6) 11. Bxc4 $16 {[%emt 0:01:17]} Nh6 $146 {[%emt 0:07:38]} (11... Nxc4 12. Nxc4 Qxd1+ 13. Kxd1 Bc5 14. Ke2 Ne7 15. Be3 Bxe3 16. Nd6+ Kf8 17. fxe3 Nd5 {1-0 Waller,D (2110)-Hagesaether,N (1973) Cambridge op 2nd 2024 (7)}) 12. O-O {[%emt 0:08:25]} Nf5 {[%emt 0:04:25]} 13. Bb2 {[%emt 0:07:08]} O-O {[%emt 0:02:31]} 14. a4 {[%emt 0:05:53]} Bd7 {[%emt 0:04:23]} (14... Bb4 $14) 15. Bb3 {[%emt 0:04:01]} Bb4 {[%emt 0:05:30]} 16. Ne4 {[%emt 0:09:34]} Rc8 {[%emt 0:14:17]} 17. Rc1 {[%emt 0:10:37] White is more active.} Rxc1 {[%emt 0:03:31]} 18. Qxc1 {[%emt 0:03:56]} Nd5 {[%emt 0:13:17]} 19. Bxd5 {[%emt 0:05:15]} ({Better is} 19. Rd1 $16) 19... exd5 $11 {[%emt 0:00:05]} 20. Nc5 {[%emt 0:05:30]} Bc8 {[%emt 0:02:50]} 21. Rd1 {[%emt 0:04:13]} Qc7 {[%emt 0:04:53]} 22. Nd3 {[%emt 0:03:10]} (22. Rxd5 $2 {too greedy.} Ne7 23. Rd6 (23. b6 $2 Qc6 $19) 23... Qxc5 $19 (23... Bxc5 $2 24. Rd2 $19)) 22... Qc4 {[%emt 0:01:48]} 23. Nxb4 {[%emt 0:05:00]} axb4 {[%emt 0:00:07]} 24. Qd2 {[%emt 0:05:44]} Be6 {[%emt 0:00:49]} 25. Rc1 {[%emt 0:01:57]} Qb3 {[%emt 0:01:09][%cal Of8a8]} 26. Qc2 {[%emt 0:04:46] Weighted Error Value: White=0.13 (very precise) /Black=0.18 (very precise)   Mistake:       	White=1     	Black=2      Inaccurate:     	White=1     	Black=3      OK:         	White=9     	Black=6      Best:        	White=2     	---} 1/2-1/2

[Event "FIDE World School-ch O-11 2025"]
[Site "Vrnjacka Banja"]
[Date "2025.03.24"]
[Round "5.3"]
[White "Lishoy Gengis Paratazham, Dildarav"]
[Black "Kiringoda, Thehas Rithmitha"]
[Result "1/2-1/2"]
[Annotator "TA"]
[ECO "B12"]
[WhiteElo "2071"]
[BlackElo "1868"]
[PlyCount "63"]
[EventDate "2025.03.19"]
[EventType "swiss"]
[EventCountry "SRB"]
[SourceTitle "playchess.com"]
[Source "ChessBase"]
[SourceQuality "1"]
[TimeControl "5400+30"]

{[%evp 14,63,22,27,38,31,28,37,37,35,31,28,39,31,81,34,28,31,38,22,71,64,48,8,62,27,52,-10,-38,-50,35,-41,-33,-52,-70,-82,-31,-62,-43,-51,-72,-78,-70,-64,11,11,13,-12,-6,-14,-15,-17]} 1. e4 {[%emt 0:00:03]} c6 {[%emt 0:00:09]} 2. d4 {[%emt 0:00:06]} d5 {[%emt 0:00:05]} 3. e5 {[%emt 0:00:05]} Bf5 {[%emt 0:00:12]} 4. Nf3 {[%emt 0:00:11]} e6 {[%emt 0:00:15]} 5. Be2 {[%emt 0:00:20]} Nd7 {[%emt 0:00:17]} 6. O-O {[%emt 0:06:01]} Ne7 {[%emt 0:01:28]} 7. c3 {[%emt 0:07:19]} c5 {[%emt 0:02:35]} 8. dxc5 {[%emt 0:03:24]} Nc6 {[%emt 0:07:57] B12: Caro-Kann: Advance Variation.} 9. Nd4 {[%emt 0:04:27]} Bxb1 {[%emt 0:02:08]} 10. Rxb1 {[%emt 0:00:42] And now b4 would win.} Bxc5 {[%emt 0:00:47] White is slightly better.} 11. f4 {[%emt 0:08:41]} O-O {[%emt 0:07:03]} 12. Kh1 {[%emt 0:04:01]} Qe7 {[%emt 0:03:06]} 13. a3 $146 {[%emt 0:08:51]} (13. Bf3 Bb6 14. Re1 Nxd4 15. cxd4 f5 16. exf6 Qxf6 17. Be3 Nb8 18. f5 Qxf5 19. Bg4 {½-½ Adarsh,T (2368)-Neuman,P (2426) Olomouc GM 25th 2024 (3)}) 13... Rad8 {[%emt 0:13:01]} (13... Bb6 $14) 14. Bg4 {[%emt 0:04:49]} (14. b4 $16 Bb6 15. Nxc6 bxc6 16. c4) 14... Bb6 $14 {[%emt 0:02:47]} 15. b4 {[%emt 0:09:23]} Rfe8 {[%emt 0:15:11]} 16. Qd3 {[%emt 0:08:25]} Nf8 {[%emt 0:09:14]} (16... Rc8 $11) 17. Nb5 {[%emt 0:08:31] White is much more active.} Ng6 {[%emt 0:04:19]} 18. Bh5 {[%emt 0:02:17]} Rf8 {[%emt 0:03:56]} (18... f6 $11) 19. Bxg6 {[%emt 0:01:14]} (19. a4 {with more complications.} f6 20. a5 a6 21. Nd4) 19... hxg6 {[%emt 0:00:21]} 20. Bd2 {[%emt 0:04:42]} (20. a4 $1 $14) 20... a6 {[%emt 0:02:53]} 21. Nd4 {[%emt 0:04:03]} Rc8 {[%emt 0:00:29]} (21... Nxd4 $1 $15 22. cxd4 Rc8) 22. b5 {[%emt 0:01:02]} (22. Nf3 $14 Qe8 23. b5 axb5 24. Qxb5) 22... Nxd4 $15 {[%emt 0:00:36]} 23. cxd4 {[%emt 0:02:19]} a5 {[%emt 0:00:38]} 24. Rbc1 {[%emt 0:00:35] Prevents Rc4.} Qd7 {[%emt 0:00:44]} (24... Rc4 $17 {aiming for ...Ra4.} 25. Rxc4 dxc4 26. Qxc4 Qxa3) 25. a4 {[%emt 0:00:45] [#]} Rc4 $1 {[%emt 0:05:23]} 26. Rxc4 {[%emt 0:00:36]} dxc4 {[%emt 0:00:05]} 27. Qxc4 {[%emt 0:00:16]} Rc8 $1 {[%emt 0:00:04]} 28. Qd3 {[%emt 0:01:09]} Qxd4 {[%emt 0:00:08]} (28... Qd5 $1 $15 29. Be3 Rc4) 29. Qxd4 $11 {[%emt 0:00:26] The position is equal.} Bxd4 {[%emt 0:00:05]} 30. Bxa5 {[%emt 0:02:09]} Rc4 {[%emt 0:00:09]} 31. Rb1 {[%emt 0:01:11]} Rxa4 {[%emt 0:03:59]} 32. Bc7 {Weighted Error Value: White=0.23 (precise) /Black=0.21 (precise)   Mistake:       	White=3     	Black=6      Inaccurate:     	White=3     	---        OK:         	White=5     	Black=8      Strong:       	---       	Black=1      Brilliant:      	---       	Black=1} 1/2-1/2

[Event "FIDE World School-ch O-11 2025"]
[Site "Vrnjacka Banja"]
[Date "2025.03.24"]
[Round "5.4"]
[White "Adamovic, Nikola"]
[Black "Zabelin, Platon"]
[Result "0-1"]
[Annotator "TA"]
[ECO "B12"]
[WhiteElo "1996"]
[BlackElo "1831"]
[PlyCount "146"]
[EventDate "2025.03.19"]
[EventType "swiss"]
[EventCountry "SRB"]
[SourceTitle "playchess.com"]
[Source "ChessBase"]
[SourceQuality "1"]
[TimeControl "5400+30"]

{[%evp 11,146,0,0,-9,0,3,22,19,16,0,20,14,17,6,4,0,29,34,41,20,37,0,11,-26,-41,-191,-192,-255,-244,-240,-254,-258,-283,-305,-285,-288,-202,-256,-220,-246,-244,-251,-251,-281,-274,-280,-284,-461,-291,-332,-316,-279,-88,-87,-87,-296,-293,-285,-294,-317,-310,-310,-297,-387,-371,-415,-404,-342,-333,-456,-388,-541,-528,-472,-422,-593,-485,-635,-585,-495,-438,-592,-575,-785,-688,-975,-960,-975,-941,-798,-620,-686,-640,-693,-618,-673,-674,-638,-564,-701,-661,-627,-627,-688,-653,-968,-993,-1116,-965,-1213,-1161,-1178,-1175,-1169,-1103,-1025,-987,-939,-881,-2315,-1762,-1635,-1505,-29978,-29979,-29979,-29980,-29983,-29984,-29985,-29983,-29986,-29987,-29987,-29988,-29988,-29989]} 1. e4 {[%emt 1:31:00]} c6 {[%emt 0:01:51]} 2. d4 {[%emt 0:00:00]} d5 {[%emt 0:00:12]} 3. e5 {[%emt 0:00:00]} Bf5 {[%emt 0:00:05]} 4. h4 {[%emt 0:00:00]} h5 {[%emt 0:00:07]} 5. c4 {[%emt 0:00:00]} e6 {[%emt 0:00:10]} 6. Nc3 {[%emt 0:00:00]} Ne7 {[%emt 0:00:47]} 7. Nge2 {[%emt 0:00:00] 7.Nge2 is better than 7.Bg5. B12: Caro-Kann: Advance Variation.} Nd7 {[%emt 0:04:07]} 8. cxd5 {[%emt 0:00:00]} cxd5 {[%emt 0:12:10]} 9. Ng3 {[%emt 0:00:00][%cal Oc1g5] The position is equal.} Bg6 {[%emt 0:00:30]} 10. Bd3 {[%emt 0:00:00]} Bxd3 {[%emt 0:02:44]} 11. Qxd3 {[%emt 0:00:00]} Nc6 {[%emt 0:02:23]} 12. Bg5 {[%emt 0:00:00]} Be7 {[%emt 0:11:42]} 13. f4 $146 {[%emt 0:00:00]} (13. Bxe7 Qxe7 14. O-O-O O-O-O 15. Kb1 Nb6 16. f4 g6 17. Nf1 Kb8 18. Ne3 a6 19. Ne2 {½-½ Nunn,J (2615)-Seirawan,Y (2625) Donner Memorial 1995 (10)}) 13... Bxg5 {[%emt 0:08:14]} 14. hxg5 {[%emt 0:00:00]} g6 {[%emt 0:11:01]} 15. Nb5 {[%emt 0:00:00]} Qa5+ {[%emt 0:10:07]} 16. Kf2 {[%emt 0:00:00]} Qb6 {[%emt 0:05:58]} 17. Nd6+ {[%emt 0:00:00]} Ke7 $1 {[%emt 0:02:10][%cal Oc6e5]} 18. Ne2 {[%emt 0:00:00]} (18. Rhc1 $15) 18... Ncxe5 $19 {[%emt 0:02:04]} 19. Nf5+ {[%emt 0:00:00]} (19. fxe5 $142 Nxe5 20. Qd2) 19... gxf5 {[%emt 0:01:39]} 20. fxe5 {[%emt 0:00:00]} Nxe5 {[%emt 0:01:15]} (20... Qxb2 $2 21. Rhb1 $18) 21. Qa3+ {[%emt 0:00:00]} Kd7 {[%emt 0:01:22]} 22. Qa4+ {[%emt 0:00:00]} Qc6 {[%emt 0:02:43]} 23. Qb3 {[%emt 0:00:00]} Ng4+ {[%emt 0:00:30]} 24. Kf3 {[%emt 0:00:00]} Qb6 {[%emt 0:07:48]} 25. Qa4+ {[%emt 0:00:00]} Ke7 {[%emt 0:00:38][%cal Oe6e5]} 26. Qa3+ {[%emt 0:00:00]} Qd6 {[%emt 0:00:23]} 27. Qb3 {[%emt 0:00:00]} b6 {[%emt 0:02:00]} 28. Nf4 {[%emt 0:00:00]} Rac8 {[%emt 0:02:51]} 29. g6 $2 {[%emt 0:00:00]} (29. Rac1 {keeps fighting.}) 29... Nf6 {[%emt 0:02:49]} 30. Qa4 {[%emt 0:08:53]} a5 {[%emt 0:03:10]} 31. Rac1 {[%emt 0:01:04]} Qb4 $2 {[%emt 0:01:33]} (31... Rhg8 $19 {is more deadly. And now ...Rc4 would win.} 32. Rxc8 Rxc8 33. gxf7 Kxf7) 32. Qxb4+ $17 {[%emt 0:00:46]} axb4 {[%emt 0:00:01]} 33. g7 $2 {[%emt 0:00:16]} (33. Rhe1 $17) 33... Rhg8 $19 {[%emt 0:00:07]} 34. Rxc8 {[%emt 0:01:44]} Rxc8 {[%emt 0:00:01]} 35. Nxh5 {[%emt 0:00:01]} Nxh5 {[%emt 0:01:05]} 36. Rxh5 {[%emt 0:00:01][%mdl 4096] [#] Endgame and Rh8 should not be overlooked. KR-KR. Black is a pawn up.} Rg8 {[%emt 0:00:01]} 37. Rh8 {[%emt 0:00:27]} Rxg7 {[%emt 0:00:01]} 38. Rb8 {[%emt 0:00:01]} Rg4 {[%emt 0:00:27]} 39. Rxb6 {[%emt 0:01:22]} Rxd4 {[%emt 0:00:02]} 40. Ke3 {[%emt 0:00:14]} Re4+ {[%emt 0:00:27]} 41. Kd3 {[%emt 0:00:01]} Rg4 {[%emt 0:00:31]} 42. Ke3 {[%emt 0:00:27]} Kf6 {[%emt 0:00:08]} ({Not} 42... Rxg2 43. Rxb4 e5 44. Kf3 $19) 43. Rb7 {[%emt 0:00:51]} (43. Kf3 $142) 43... Ke5 {[%emt 0:00:10]} 44. Rb6 {[%emt 0:00:21]} Re4+ {[%emt 0:00:12]} 45. Kf3 {[%emt 0:00:10]} Rc4 {[%emt 0:00:31]} 46. Ke3 {[%emt 0:00:56]} f4+ {[%emt 0:01:11]} 47. Kf3 {[%emt 0:00:26]} Kf5 {[%emt 0:01:15]} 48. Rb5 {[%emt 0:00:36]} f6 {[%emt 0:00:17]} 49. g3 {[%emt 0:01:42]} fxg3 {[%emt 0:00:09]} 50. Kxg3 {[%emt 0:00:00]} Rd4 {[%emt 0:00:27]} 51. Kf3 {[%emt 0:00:07]} Ke5 {[%emt 0:00:19]} 52. Rb8 {[%emt 0:01:07]} Rh4 {[%emt 0:01:18]} 53. Kg3 {[%emt 0:00:30]} Re4 {[%emt 0:00:24]} 54. Kf3 {[%emt 0:00:55]} Rc4 {[%emt 0:00:27]} 55. Rb6 {[%emt 0:02:00]} Kf5 {[%emt 0:00:15]} 56. Rb5 {[%emt 0:00:20]} e5 {[%emt 0:00:36]} 57. Ke3 {[%emt 0:00:51]} Rd4 {[%emt 0:00:32]} 58. Rb6 {[%emt 0:01:15]} Rh4 {[%emt 0:00:29]} 59. Kf3 {[%emt 0:00:18] [#]} b3 $1 {[%emt 0:01:49]} 60. axb3 {[%emt 0:00:19]} Rh2 {[%emt 0:00:09][%cal Od5d4]} 61. Ke3 {[%emt 0:00:43]} Rxb2 {[%emt 0:00:11]} 62. b4 {[%emt 0:00:06]} Rb3+ {[%emt 0:00:04]} 63. Kd2 {[%emt 0:00:08]} d4 {[%emt 0:01:01]} 64. Kc2 {[%emt 0:00:23]} Rc3+ {[%emt 0:00:06]} 65. Kd2 {[%emt 0:00:01]} Rh3 {[%emt 0:00:07]} 66. Ra6 {[%emt 0:00:48]} Ke4 {[%emt 0:01:20]} 67. Rxf6 {[%emt 0:00:41]} Rh2+ {[%emt 0:00:04] Black mates.} 68. Kc1 {[%emt 0:00:50]} Ke3 {[%emt 0:00:15]} 69. Ra6 {[%emt 0:01:47]} d3 {[%emt 0:00:14]} 70. b5 {[%emt 0:00:29]} Rh1+ {[%emt 0:00:09]} 71. Kb2 {[%emt 0:00:00]} d2 {[%emt 0:00:13]} 72. Rd6 {[%emt 0:00:04]} d1=Q {[%emt 0:00:07]} 73. Rxd1 {[%emt 0:00:29]} Rxd1 {[%emt 0:00:02] Weighted Error Value: White=0.56/Black=0.34  Loses game:     	White=1     	---        Missed win:     	---       	Black=1      Mistake:       	White=4     	---        Inaccurate:     	White=9     	Black=2      OK:         	White=10    	Black=17     Best:        	White=1     	Black=3      Strong:       	---       	Black=1} 0-1

[Event "FIDE World School-ch O-11 2025"]
[Site "Vrnjacka Banja"]
[Date "2025.03.24"]
[Round "5.5"]
[White "Tulegen, Ramazan"]
[Black "Colovic, Vuk"]
[Result "1-0"]
[Annotator "TA"]
[ECO "B81"]
[WhiteElo "1973"]
[BlackElo "1738"]
[PlyCount "53"]
[EventDate "2025.03.19"]
[EventType "swiss"]
[EventCountry "SRB"]
[SourceTitle "playchess.com"]
[Source "ChessBase"]
[SourceQuality "1"]
[TimeControl "5400+30"]

{[%evp 18,53,77,44,54,48,37,32,47,37,45,45,42,16,32,8,66,14,129,30,308,311,295,298,572,572,549,561,562,500,599,601,647,587,756,762,1304,1298]} 1. e4 {[%emt 0:00:07]} c5 {[%emt 0:00:06]} 2. Nf3 {[%emt 0:00:14]} e6 {[%emt 0:00:13]} 3. d4 {[%emt 0:00:08]} cxd4 {[%emt 0:00:06]} 4. Nxd4 {[%emt 0:00:05]} Nc6 {[%emt 0:00:04]} 5. Nc3 {[%emt 0:00:15]} d6 {[%emt 0:00:18]} 6. g4 {[%emt 0:00:07]} Be7 {[%emt 0:10:13]} 7. Be3 {[%emt 0:02:24]} a6 {[%emt 0:08:33]} 8. Rg1 {[%emt 0:07:01]} Nf6 {[%emt 0:09:42]} 9. g5 {[%emt 0:01:34]} Nd7 {[%emt 0:01:24]} 10. Qd2 {[%emt 0:04:30] White has more active pieces. The black rooks are passive.} Nde5 {[%emt 0:06:10] ...Nxd4 is the strong threat. B81: Sicilian Scheveningen: Keres Attack.} 11. Be2 {[%emt 0:06:25]} Nxd4 $146 {[%emt 0:08:58]} (11... Qa5 12. O-O-O Bd7 13. f4 Ng6 14. Kb1 b5 15. Bf3 Rb8 16. f5 Nge5 17. fxe6 fxe6 18. Bh5+ {1-0 Saez,D (1793)-Rodriguez,J (1700) Moron Philidor CC 13th 2017 (7.13)}) 12. Bxd4 {[%emt 0:01:37]} O-O $1 {[%emt 0:03:41] White is slightly better.} 13. f4 {[%emt 0:06:12]} Nc6 {[%emt 0:01:42]} 14. Be3 {[%emt 0:01:52]} b5 {[%emt 0:03:54]} 15. Bf3 $36 {[%emt 0:06:01][%mdl 2048] White is pushing.} Bb7 {[%emt 0:02:28]} 16. O-O-O {[%emt 0:05:54]} Rc8 {[%emt 0:11:37]} (16... Qc7 $11) 17. Kb1 {[%emt 0:08:20]} (17. Qf2 $14) 17... Qa5 {[%emt 0:04:26] [#]} (17... Na5 $11 {remains equal.}) 18. Bh1 {[%emt 0:23:35]} (18. Qf2 $1 $16 {Bb6 is the strong threat.} Qc7 19. a3) 18... Rc7 $2 {[%emt 0:16:36][%mdl 8192] [#] Loses the game.} (18... Qc7 $11) 19. Qf2 $1 $18 {[%emt 0:05:21]} Qb4 {[%emt 0:06:10]} 20. Bb6 {[%emt 0:07:01][%cal Be3b6,Bb6a5,Ba5d8][%mdl 32]} Na5 $2 {[%emt 0:03:37]} (20... Rd7 21. a3 Qc4) 21. a3 {[%emt 0:00:16] White is clearly winning.} ({Worse is} 21. Bxc7 Nc4 $11) 21... Qc4 {[%emt 0:00:24]} 22. Bxa5 {[%emt 0:00:19]} Rcc8 {[%emt 0:00:13]} 23. Qd4 {[%emt 0:04:17]} Qc6 {[%emt 0:00:10]} 24. f5 {[%emt 0:00:26]} e5 {[%emt 0:01:10]} 25. Qd3 {[%emt 0:00:13]} g6 {[%emt 0:00:33]} 26. Nd5 {[%emt 0:00:15]} Bd8 {[%emt 0:00:10]} 27. Bxd8 {[%emt 0:00:07] Weighted Error Value: White=0.22 (precise) /Black=0.94  Loses game:     	---       	Black=1      Mistake:       	White=2     	Black=3      Inaccurate:     	White=1     	Black=1      OK:         	White=5     	Black=5      Best:        	White=1     	---        Strong:       	White=1     	Black=1} 1-0